fUST/lending_fUST_20260109
["ID","MTS","AMOUNT","RATE_DAILY","PERIOD"]
[401105145,1767933045680,-164.0,0.00020877,3]
[401105146,1767933045690,-151.12568822,0.00020945,2]
[401105147,1767933045699,-151.0,0.00021,3]
[401105148,1767933045711,-601.29071753,0.00021,2]
[401105149,1767933045721,-24790.43694266,0.00021,2]
[401105151,1767933045730,-1500.0,0.00021049,2]
[401105152,1767933045739,-151.0,0.00021049,2]
[401105154,1767933045748,-311.1,0.00021049,2]
[401105155,1767933045758,-151.0,0.00021049,2]
[401105157,1767933045768,-2030.29667201,0.00021049,2]
[401105158,1767933045777,-151.0,0.00021049,2]
[401105159,1767933045787,-151.0,0.00021049,2]
[401105160,1767933045797,-151.0,0.00021049,2]
[401105161,1767933045806,-151.0,0.00021049,2]
[401105162,1767933045815,-250.0,0.00021049,2]
[401105163,1767933045824,-1500.0,0.00021049,2]
[401105164,1767933045834,-151.0,0.00021049,2]
[401105165,1767933045843,-151.0,0.00021049,2]
[401105166,1767933045852,-250.0,0.00021049,2]
[401105167,1767933045861,-1500.0,0.00021049,2]
[401105168,1767933045870,-151.0,0.00021049,2]
[401105169,1767933045879,-151.0,0.00021049,2]
[401105170,1767933045888,-250.0,0.00021049,2]
[401105171,1767933045898,-1500.0,0.00021049,2]
[401105172,1767933045907,-151.0,0.00021049,2]
[401105173,1767933045916,-151.0,0.00021049,2]
[401105174,1767933045925,-250.0,0.00021049,2]
[401105175,1767933045934,-1500.0,0.00021049,2]
[401105176,1767933045943,-151.0,0.00021049,2]
[401105177,1767933045952,-151.0,0.00021049,2]
[401105178,1767933045962,-151.0,0.00021049,2]
[401105179,1767933045970,-250.0,0.00021049,2]
[401105180,1767933045979,-1500.0,0.00021049,2]
[401105181,1767933045988,-151.0,0.00021049,2]
[401105182,1767933045997,-151.0,0.00021049,2]
[401105183,1767933046006,-250.0,0.00021049,2]
[401105185,1767933046015,-1500.0,0.00021049,2]
[401105187,1767933046025,-151.0,0.00021049,2]
[401105188,1767933046034,-151.0,0.00021049,2]
[401105189,1767933046044,-151.0,0.00021049,2]
[401105190,1767933046054,-250.0,0.00021049,2]
[401105191,1767933046065,-1500.0,0.00021049,2]
[401105192,1767933046074,-478.75725327,0.00021049,2]
[401105193,1767933046086,-151.0,0.00021049,2]
[401105194,1767933046096,-151.0,0.00021049,2]
[401105195,1767933046106,-151.0,0.00021049,2]
[401105196,1767933046116,-250.0,0.00021049,2]
[401105197,1767933046125,-250.0,0.00021049,2]
[401105198,1767933046134,-1500.0,0.00021049,2]
[401105199,1767933046143,-151.0,0.00021049,2]
[401105200,1767933046152,-2312.83697232,0.00021049,2]
[401105201,1767933046161,-250.0,0.00021049,2]
[401105202,1767933046170,-151.0,0.00021049,2]
[401105203,1767933046179,-250.0,0.00021049,2]
[401105204,1767933046188,-1500.0,0.00021049,2]
[401105205,1767933046197,-151.0,0.00021049,2]
[401105206,1767933046206,-250.0,0.00021049,2]
[401105207,1767933046215,-250.0,0.00021049,2]
[401105208,1767933046224,-1500.0,0.00021049,2]
[401105209,1767933046234,-151.0,0.00021049,2]
[401105210,1767933046243,-151.0,0.00021049,2]
[401105211,1767933046252,-250.0,0.00021049,2]
[401105212,1767933046262,-250.0,0.00021049,2]
[401105213,1767933046271,-1500.0,0.00021049,2]
[401105214,1767933046280,-152.53645226,0.00021049,2]
[401105215,1767933046289,-151.0,0.00021049,2]
[401105216,1767933046298,-250.0,0.00021049,2]
[401105217,1767933046307,-250.0,0.00021049,2]
[401105218,1767933046315,-250.0,0.00021049,2]
[401105219,1767933046324,-1500.0,0.00021049,2]
[401105220,1767933046333,-151.0,0.00021049,2]
[401105221,1767933046342,-250.0,0.00021049,2]
[401105222,1767933046351,-250.0,0.00021049,2]
[401105223,1767933046361,-1500.0,0.00021049,2]
[401105224,1767933046369,-250.0,0.00021049,2]
[401105225,1767933046379,-151.0,0.00021049,2]
[401105226,1767933046388,-250.0,0.00021049,2]
[401105227,1767933046399,-1500.0,0.00021049,2]
[401105228,1767933046408,-250.0,0.00021049,2]
[401105229,1767933046419,-151.0,0.00021049,2]
[401105230,1767933046429,-264.83937598,0.00021049,2]
[401105231,1767933046439,-250.0,0.00021049,2]
[401105232,1767933046449,-151.0,0.00021049,2]
[401105233,1767933046458,-250.0,0.00021049,2]
[401105234,1767933046467,-151.0,0.00021049,2]
[401105235,1767933046476,-250.0,0.00021049,2]
[401105236,1767933046485,-250.0,0.00021049,2]
[401105237,1767933046493,-250.0,0.00021049,2]
[401105238,1767933046502,-500.0,0.00021049,2]
[401105239,1767933046511,-151.0,0.00021049,2]
[401105240,1767933046521,-201.61280064,0.00021049,2]
[401105241,1767933046530,-30000.0,0.00021049,2]
[401105242,1767933046539,-500.0,0.00021049,2]
[401105243,1767933046548,-500.0,0.00021049,2]
[401105244,1767933046557,-500.0,0.00021049,2]
[401105245,1767933046567,-500.0,0.00021049,2]
[401105246,1767933046576,-500.0,0.00021049,2]
[401105247,1767933046585,-250.0,0.00021049,2]
[401105248,1767933046596,-500.0,0.00021049,2]
[401105249,1767933046607,-250.0,0.00021049,2]
[401105250,1767933046616,-500.0,0.00021049,2]
[401105251,1767933046626,-250.0,0.00021049,2]
[401105252,1767933046635,-500.0,0.00021049,2]
[401105253,1767933046644,-250.0,0.00021049,2]
[401105254,1767933046653,-500.0,0.00021049,2]
[401105255,1767933046662,-250.0,0.00021049,2]
[401105256,1767933046671,-500.0,0.00021049,2]
[401105257,1767933046680,-255.89504653,0.00021049,2]
[401105258,1767933046689,-500.0,0.00021049,2]
[401105259,1767933046698,-500.0,0.00021049,2]
[401105260,1767933046708,-500.0,0.00021049,2]
[401105261,1767933046720,-174.61919141,0.00021049,2]
[401105262,1767933046730,-750.80246296,0.00021091,2]
[401105263,1767933046741,-3003.20985185,0.00021091,2]
[401105264,1767933046751,-2946.60044036,0.00021138,5]
[401105265,1767933046761,-6457.11230119,0.00021181,2]
[401105266,1767933046770,-35714.28,0.000212,3]
[401105267,1767933046779,-8301.01944358,0.00021237,5]
[401105268,1767933046790,-320.0,0.00021269,2]
[401105269,1767933046799,-5283.19982932,0.00021285,2]
[401105270,1767933046808,-2403.26771612,0.00021339,2]
[401105271,1767933046817,-7500.0,0.0002137,2]
[401105272,1767933046827,-151.0,0.00021493,2]
[401105273,1767933046835,-1391.37,0.000215,2]
[401105274,1767933046844,-16429.49,0.000215,2]
[401105275,1767933046854,-1039.20549226,0.000215,2]
[401105276,1767933046863,-12854.43519592,0.000215,2]
[401105277,1767933046872,-7622.46801732,0.000215,2]
[401105278,1767933046881,-320.0,0.0002153,2]
[401105279,1767933046891,-496.47127164,0.00021597,2]
[401105280,1767933046900,-2398.4119403,0.00021597,2]
[401105281,1767933046909,-295.16938961,0.00021597,2]
[401105282,1767933046918,-2403.26771612,0.00021643,2]
[401105283,1767933046927,-151.529877,0.00021659,2]
[401105284,1767933046936,-320.0,0.00021662,2]
[401105285,1767933046945,-320.0,0.00021726,2]
[401105286,1767933046955,-151.0,0.000218,4]
[401105287,1767933046963,-320.0,0.00021829,2]
[401105288,1767933046973,-320.0,0.00021837,2]
[401105289,1767933046982,-2403.26771612,0.00021886,2]
[401105290,1767933046991,-2269.02724314,0.00021893,5]
[401105291,1767933046999,-6623.22113983,0.00021894,5]
[401105292,1767933047009,-2000.0,0.00021906,7]
[401105293,1767933047017,-200.0,0.00021917,2]
[401105294,1767933047026,-151.0,0.00021918,2]
[401105295,1767933047035,-299.741664,0.00021918,2]
[401105296,1767933047044,-151.0,0.00021918,2]
[401105297,1767933047053,-213.664329,0.00021918,2]
[401105298,1767933047062,-151.0,0.00021918,2]
[401105299,1767933047071,-151.0,0.00021918,2]
[401105300,1767933047080,-626.530657,0.00021918,2]
[401105301,1767933047089,-626.530657,0.00021918,2]
[401105302,1767933047098,-626.530657,0.00021918,2]
[401105303,1767933047114,-626.530657,0.00021918,2]
[401105304,1767933047130,-626.530657,0.00021918,2]
[401105305,1767933047139,-626.530657,0.00021918,2]
[401105306,1767933047151,-626.530657,0.00021918,2]
[401105307,1767933047165,-626.530657,0.00021918,2]
[401105308,1767933047178,-3684.236752,0.00021918,2]
[401105309,1767933047194,-3684.236752,0.00021918,2]
[401105310,1767933047204,-151.0,0.00021918,2]
[401105311,1767933047215,-151.0,0.00021918,2]
[401105312,1767933047225,-3684.236752,0.00021918,2]
[401105313,1767933047235,-3684.236752,0.00021918,2]
[401105314,1767933047244,-151.0,0.00021918,2]
[401105315,1767933047253,-151.0,0.00021918,2]
[401105316,1767933047263,-151.0,0.00021918,2]
[401105317,1767933047272,-157.670016,0.00021918,2]
[401105318,1767933047281,-151.0,0.00021918,2]
[401105319,1767933047290,-699.513143,0.00021918,2]
[401105320,1767933047299,-151.0,0.00021918,2]
[401105321,1767933047308,-699.513143,0.00021918,2]
[401105322,1767933047317,-151.0,0.00021918,2]
[401105323,1767933047326,-151.0,0.00021918,2]
[401105324,1767933047337,-699.513143,0.00021918,2]
[401105325,1767933047347,-151.0,0.00021918,2]
[401105326,1767933047356,-699.513143,0.00021918,2]
[401105327,1767933047365,-699.513143,0.00021918,2]
[401105328,1767933047375,-699.513143,0.00021918,2]
[401105329,1767933047384,-699.513143,0.00021918,2]
[401105330,1767933047393,-699.513143,0.00021918,2]
[401105331,1767933047402,-151.0,0.00021918,2]
[401105332,1767933047411,-151.0,0.00021918,2]
[401105333,1767933047420,-151.0,0.00021918,2]
[401105334,1767933047429,-151.0,0.00021918,2]
[401105335,1767933047438,-151.0,0.00021918,2]
[401105336,1767933047447,-151.0,0.00021918,2]
[401105337,1767933047456,-166.111995,0.00021918,2]
[401105338,1767933047464,-166.111995,0.00021918,2]
[401105339,1767933047474,-166.111995,0.00021918,2]
[401105340,1767933047483,-166.111995,0.00021918,2]
[401105341,1767933047492,-151.0,0.00021918,2]
[401105342,1767933047501,-151.0,0.00021918,2]
[401105343,1767933047510,-166.111995,0.00021918,2]
[401105344,1767933047519,-151.0,0.00021918,2]
[401105345,1767933047528,-166.111995,0.00021918,2]
[401105346,1767933047537,-151.0,0.00021918,2]
[401105347,1767933047546,-166.111995,0.00021918,2]
[401105348,1767933047555,-166.111995,0.00021918,2]
[401105349,1767933047564,-189.33588,0.00021918,2]
[401105350,1767933047574,-189.33588,0.00021918,2]
[401105351,1767933047583,-189.33588,0.00021918,2]
[401105352,1767933047592,-189.33588,0.00021918,2]
[401105353,1767933047602,-189.33588,0.00021918,2]
[401105354,1767933047611,-189.33588,0.00021918,2]
[401105355,1767933047621,-189.33588,0.00021918,2]
[401105356,1767933047631,-189.33588,0.00021918,2]
[401105357,1767933047640,-498.400382,0.00021918,2]
[401105358,1767933047650,-498.400382,0.00021918,2]
[401105359,1767933047659,-498.400382,0.00021918,2]
[401105360,1767933047668,-498.400382,0.00021918,2]
[401105361,1767933047678,-313.573847,0.00021918,2]
[401105362,1767933047688,-498.400382,0.00021918,2]
[401105363,1767933047697,-498.400382,0.00021918,2]
[401105364,1767933047707,-151.0,0.00021918,2]
[401105365,1767933047720,-151.0,0.00021918,2]
[401105366,1767933047729,-498.400382,0.00021918,2]
[401105367,1767933047738,-498.400382,0.00021918,2]
[401105368,1767933047747,-313.573847,0.00021918,2]
[401105369,1767933047758,-313.573847,0.00021918,2]
[401105370,1767933047767,-313.573847,0.00021918,2]
[401105371,1767933047776,-313.573847,0.00021918,2]
[401105372,1767933047786,-313.573847,0.00021918,2]
[401105373,1767933047795,-313.573847,0.00021918,2]
[401105374,1767933047805,-313.573847,0.00021918,2]
[401105375,1767933047818,-151.0,0.00021918,2]
[401105376,1767933047829,-170.78519,0.00021918,2]
[401105377,1767933047842,-157.098609,0.00021918,2]
[401105378,1767933047853,-151.0,0.00021918,2]
[401105379,1767933047865,-205.052042,0.00021918,2]
[401105380,1767933047874,-151.0,0.00021918,2]
[401105381,1767933047883,-154.61308,0.00021918,2]
[401105382,1767933047893,-151.0,0.00021918,2]
[401105383,1767933047902,-151.0,0.00021918,2]
[401105384,1767933047911,-195.979906,0.00021918,2]
[401105385,1767933047919,-151.0,0.00021918,2]
[401105386,1767933047928,-151.0,0.00021918,2]
[401105387,1767933047938,-151.0,0.00021918,2]
[401105388,1767933047947,-151.0,0.00021918,2]
[401105389,1767933047956,-151.0,0.00021918,2]
[401105390,1767933047966,-163.657676,0.00021918,2]
[401105391,1767933047976,-163.657676,0.00021918,2]
[401105392,1767933047984,-151.0,0.00021918,2]
[401105393,1767933047994,-155.741739,0.00021918,2]
[401105394,1767933048003,-163.657676,0.00021918,2]
[401105395,1767933048012,-163.657676,0.00021918,2]
[401105396,1767933048021,-163.657676,0.00021918,2]
[401105397,1767933048029,-163.657676,0.00021918,2]
[401105398,1767933048038,-163.657676,0.00021918,2]
[401105399,1767933048157,-163.657676,0.00021918,2]
[401105400,1767933048167,-151.0,0.00021918,2]
[401105401,1767933048177,-151.0,0.00021918,2]
[401105402,1767933048194,-151.0,0.00021918,2]
[401105403,1767933048202,-151.0,0.00021918,2]
[401105404,1767933048212,-199.159401,0.00021918,2]
[401105405,1767933048221,-199.159401,0.00021918,2]
[401105406,1767933048230,-199.159401,0.00021918,2]
[401105407,1767933048239,-199.159401,0.00021918,2]
[401105408,1767933048248,-199.159401,0.00021918,2]
[401105409,1767933048257,-199.159401,0.00021918,2]
[401105410,1767933048266,-199.159401,0.00021918,2]
[401105411,1767933048276,-199.159401,0.00021918,2]
[401105412,1767933048285,-199.159401,0.00021918,2]
[401105413,1767933048294,-199.159401,0.00021918,2]
[401105414,1767933048303,-199.159401,0.00021918,2]
[401105415,1767933048312,-199.159401,0.00021918,2]
[401105416,1767933048320,-151.0,0.00021918,2]
[401105417,1767933048328,-161.349592,0.00021918,2]
[401105418,1767933048336,-212.370924,0.00021918,2]
[401105419,1767933048344,-151.0,0.00021918,2]
[401105420,1767933048353,-151.0,0.00021918,2]
[401105421,1767933048362,-151.0,0.00021918,2]
[401105422,1767933048371,-151.0,0.00021918,2]
[401105423,1767933048379,-151.0,0.00021918,2]
[401105424,1767933048388,-151.0,0.00021918,2]
[401105425,1767933048397,-298.26848,0.00021918,2]
[401105426,1767933048407,-298.26848,0.00021918,2]
[401105427,1767933048415,-298.26848,0.00021918,2]
[401105428,1767933048424,-298.26848,0.00021918,2]
[401105429,1767933048434,-298.26848,0.00021918,2]
[401105430,1767933048443,-298.26848,0.00021918,2]
[401105431,1767933048452,-298.26848,0.00021918,2]
[401105432,1767933048461,-298.26848,0.00021918,2]
[401105433,1767933048470,-298.26848,0.00021918,2]
[401105434,1767933048479,-298.26848,0.00021918,2]
[401105435,1767933048488,-298.26848,0.00021918,2]
[401105436,1767933048497,-298.26848,0.00021918,2]
[401105437,1767933048505,-151.0,0.00021918,2]
[401105438,1767933048514,-171.726927,0.00021918,2]
[401105439,1767933048523,-151.0,0.00021918,2]
[401105440,1767933048531,-151.0,0.00021918,2]
[401105441,1767933048540,-151.0,0.00021918,2]
[401105442,1767933048549,-151.0,0.00021918,2]
[401105443,1767933048557,-224.949842,0.00021918,2]
[401105444,1767933048566,-607.260341,0.00021918,2]
[401105445,1767933048575,-607.260341,0.00021918,2]
[401105446,1767933048584,-607.260341,0.00021918,2]
[401105447,1767933048593,-607.260341,0.00021918,2]
[401105448,1767933048603,-607.260341,0.00021918,2]
[401105449,1767933048612,-607.260341,0.00021918,2]
[401105450,1767933048621,-607.260341,0.00021918,2]
[401105451,1767933048630,-607.260341,0.00021918,2]
[401105452,1767933048639,-607.260341,0.00021918,2]
[401105453,1767933048647,-607.260341,0.00021918,2]
[401105454,1767933048656,-607.260341,0.00021918,2]
[401105455,1767933048665,-607.260341,0.00021918,2]
[401105456,1767933048674,-607.260341,0.00021918,2]
[401105457,1767933048683,-607.260341,0.00021918,2]
[401105458,1767933048692,-607.260341,0.00021918,2]
[401105459,1767933048700,-607.260341,0.00021918,2]
[401105460,1767933048711,-607.260341,0.00021918,2]
[401105461,1767933048721,-607.260341,0.00021918,2]
[401105462,1767933048730,-607.260341,0.00021918,2]
[401105463,1767933048738,-607.260332,0.00021918,2]
[401105464,1767933048747,-151.0,0.00021918,2]
[401105465,1767933048758,-5161.42549146,0.00021918,2]
[401105466,1767933048766,-363.674,0.00021918,2]
[401105467,1767933048775,-151.0,0.00021918,2]
[401105468,1767933048784,-151.0,0.00021918,2]
[401105469,1767933048793,-166.111995,0.00021918,2]
[401105470,1767933048801,-166.111995,0.00021918,2]
[401105471,1767933048810,-151.0,0.00021918,2]
[401105472,1767933048819,-166.111995,0.00021918,2]
[401105473,1767933048827,-151.0,0.00021918,2]
[401105474,1767933048836,-166.111995,0.00021918,2]
[401105475,1767933048845,-189.33588,0.00021918,2]
[401105476,1767933048854,-189.33588,0.00021918,2]
[401105477,1767933048863,-189.33588,0.00021918,2]
[401105478,1767933048872,-189.33588,0.00021918,2]
[401105479,1767933048881,-498.400382,0.00021918,2]
[401105480,1767933048891,-498.400382,0.00021918,2]
[401105481,1767933048900,-498.400382,0.00021918,2]
[401105482,1767933048910,-156.963818,0.00021918,2]
[401105483,1767933048920,-498.400382,0.00021918,2]
[401105484,1767933048931,-313.573847,0.00021918,2]
[401105485,1767933048939,-313.573847,0.00021918,2]
[401105486,1767933048948,-313.573847,0.00021918,2]
[401105487,1767933048957,-313.573847,0.00021918,2]
[401105488,1767933048966,-221.941164,0.00021918,2]
[401105489,1767933048975,-221.941164,0.00021918,2]
[401105490,1767933048983,-221.941164,0.00021918,2]
[401105491,1767933048992,-221.941164,0.00021918,2]
[401105492,1767933049001,-979.022557,0.00021918,2]
[401105493,1767933049010,-979.022557,0.00021918,2]
[401105494,1767933049019,-979.022557,0.00021918,2]
[401105495,1767933049028,-419.868976,0.00021918,2]
[401105496,1767933049036,-979.022557,0.00021918,2]
[401105497,1767933049046,-419.868976,0.00021918,2]
[401105498,1767933049057,-201.695768,0.00021918,2]
[401105499,1767933049066,-419.868976,0.00021918,2]
[401105500,1767933049074,-419.868976,0.00021918,2]
[401105501,1767933049083,-151.0,0.00021918,2]
[401105502,1767933049092,-151.0,0.00021918,2]
[401105503,1767933049100,-151.0,0.00021918,2]
[401105504,1767933049109,-163.657676,0.00021918,2]
[401105505,1767933049118,-163.657676,0.00021918,2]
[401105506,1767933049127,-163.657676,0.00021918,2]
[401105507,1767933049137,-163.657676,0.00021918,2]
[401105508,1767933049149,-151.0,0.00021918,2]
[401105509,1767933049160,-151.0,0.00021918,2]
[401105510,1767933049169,-151.000003,0.00021918,2]
[401105511,1767933049178,-2258.0,0.00021967,2]
[401105512,1767933049187,-350.1,0.00021982,2]
[401105513,1767933049196,-65909.0920356,0.00022,2]
[401105514,1767933049204,-467.25,0.00022,7]
[401105515,1767933049213,-699.513143,0.00022,2]
[401105516,1767933049222,-699.513143,0.00022,2]
[401105517,1767933049231,-699.513143,0.00022,2]
[401105518,1767933049240,-699.513143,0.00022,2]
[401105519,1767933049249,-151.0,0.00022,2]
[401105520,1767933049258,-151.0,0.00022,2]
[401105521,1767933049267,-151.0,0.00022,2]
[401105522,1767933049279,-199.159401,0.00022,2]
[401105523,1767933049290,-199.159401,0.00022,2]
[401105524,1767933049300,-199.159401,0.00022,2]
[401105525,1767933049309,-199.159401,0.00022,2]
[401105526,1767933049318,-32105.108133,0.00022,20]
[401105527,1767933049327,-151.0,0.00022,2]
[401105528,1767933049336,-151.0,0.00022,2]
[401105529,1767933049347,-298.26848,0.00022,2]
[401105530,1767933049359,-298.26848,0.00022,2]
[401105531,1767933049369,-298.26848,0.00022,2]
[401105532,1767933049379,-298.26848,0.00022,2]
[401105533,1767933049388,-2403.26771612,0.00022013,2]
[401105534,1767933049398,-151.0,0.000221,9]
[401105535,1767933049407,-514.84070869,0.00022145,2]
[401105536,1767933049416,-2487.15318209,0.00022145,2]
[401105537,1767933049425,-35714.28,0.000222,3]
[401105538,1767933049434,-200.0,0.000222,2]
[401105539,1767933049443,-236.48201305,0.00022201,2]
[401105540,1767933049452,-945.92805221,0.00022201,2]
[401105541,1767933049460,-2128.33811747,0.00022201,2]
[401105542,1767933049470,-3783.71220884,0.00022201,2]
[401105543,1767933049480,-5912.05032631,0.00022201,2]
[401105544,1767933049489,-8513.35246989,0.00022201,2]
[401105545,1767933049498,-398.46074137,0.00022201,2]
[401105546,1767933049507,-1593.84296547,0.00022201,2]
[401105547,1767933049516,-3586.14667231,0.00022201,2]
[401105548,1767933049525,-6375.37186188,0.00022201,2]
[401105549,1767933049534,-11587.61863958,0.00022201,2]
[401105550,1767933049543,-965.30188022,0.00022201,2]
[401105551,1767933049552,-9961.51853418,0.00022201,2]
[401105552,1767933049561,-3861.20752087,0.00022201,2]
[401105553,1767933049571,-195.886572,0.00022224,2]
[401105554,1767933049580,-3684.236752,0.00022224,2]
[401105555,1767933049590,-3684.236752,0.00022224,2]
[401105556,1767933049599,-151.0,0.00022224,2]
[401105557,1767933049608,-3684.236752,0.00022224,2]
[401105558,1767933049616,-156.980802,0.00022224,2]
[401105559,1767933049626,-3684.236752,0.00022224,2]
[401105560,1767933049634,-151.0,0.00022224,2]
[401105561,1767933049643,-151.0,0.00022224,2]
[401105562,1767933049652,-151.0,0.00022224,2]
[401105563,1767933049661,-163.657676,0.00022224,2]
[401105564,1767933049671,-163.657676,0.00022224,2]
[401105565,1767933049680,-163.657676,0.00022224,2]
[401105566,1767933049690,-163.657676,0.00022224,2]
[401105567,1767933049699,-151.0,0.00022224,2]
[401105568,1767933049709,-189.3332,0.00022224,2]
[401105569,1767933049721,-221.941164,0.00022231,2]
[401105570,1767933049731,-221.941164,0.00022231,2]
[401105571,1767933049740,-221.941164,0.00022231,2]
[401105572,1767933049749,-221.941164,0.00022231,2]
[401105573,1767933049759,-979.022557,0.00022231,2]
[401105574,1767933049768,-979.022557,0.00022231,2]
[401105575,1767933049780,-979.022557,0.00022231,2]
[401105576,1767933049790,-419.868976,0.00022231,2]
[401105577,1767933049801,-979.022557,0.00022231,2]
[401105578,1767933049811,-419.868976,0.00022231,2]
[401105579,1767933049822,-419.868976,0.00022231,2]
[401105580,1767933049833,-419.868976,0.00022231,2]
[401105581,1767933049844,-151.0,0.00022231,2]
[401105582,1767933049854,-1431.0,0.00022231,2]
[401105583,1767933049863,-1431.0,0.0002229,2]
[401105584,1767933049872,-154.31906,0.0002234,2]
[401105585,1767933049881,-626.530657,0.0002234,2]
[401105586,1767933049891,-626.530657,0.0002234,2]
[401105587,1767933049902,-626.530657,0.0002234,2]
[401105588,1767933049914,-626.530657,0.0002234,2]
[401105589,1767933049925,-1431.0,0.00022371,2]
[401105590,1767933049935,-1431.0,0.00022375,2]
[401105591,1767933049945,-1431.0,0.00022375,2]
[401105592,1767933049955,-2403.26771625,0.00022377,2]
[401105593,1767933049964,-5000.0,0.00022413,2]
[401105594,1767933049973,-322.6107,0.00022418,2]
[401105595,1767933049982,-181.08010149,0.00022418,2]
[401105596,1767933049992,-1431.0,0.00022476,2]
[401105597,1767933050002,-848.1329079,0.00022479,2]
[401105598,1767933050011,-895.7984708,0.00022479,2]
[401105599,1767933050020,-8163.6513634,0.00022479,2]
[401105600,1767933050029,-151.0,0.0002249,2]
[401105601,1767933050038,-151.0,0.0002249,2]
[401105602,1767933050047,-296.284923,0.0002249,2]
[401105603,1767933050055,-166.111995,0.0002249,2]
[401105604,1767933050064,-166.111995,0.0002249,2]
[401105605,1767933050074,-151.0,0.0002249,2]
[401105606,1767933050084,-166.111995,0.0002249,2]
[401105607,1767933050093,-151.0,0.0002249,2]
[401105608,1767933050102,-166.111995,0.0002249,2]
[401105609,1767933050111,-189.33588,0.0002249,2]
[401105610,1767933050120,-189.33588,0.0002249,2]
[401105611,1767933050129,-189.33588,0.0002249,2]
[401105612,1767933050139,-189.33588,0.0002249,2]
[401105613,1767933050148,-498.400382,0.0002249,2]
[401105614,1767933050158,-498.400382,0.0002249,2]
[401105615,1767933050168,-498.400382,0.0002249,2]
[401105616,1767933050178,-498.400382,0.0002249,2]
[401105617,1767933050188,-313.573847,0.0002249,2]
[401105618,1767933050199,-313.573847,0.0002249,2]
[401105619,1767933050208,-313.573847,0.0002249,2]
[401105620,1767933050217,-313.573847,0.0002249,2]
[401105621,1767933050226,-1431.0,0.00022509,2]
[401105622,1767933050235,-153.033862,0.00022509,2]
[401105623,1767933050244,-1431.0,0.0002252,2]
[401105624,1767933050253,-165.0,0.00022521,7]
[401105625,1767933050262,-1431.0,0.00022554,2]
[401105626,1767933050272,-1431.0,0.00022572,2]
[401105627,1767933050281,-12040.6709832,0.0002259,2]
[401105628,1767933050290,-695.6634328,0.0002259,2]
[401105629,1767933050300,-2301.884799,0.0002259,2]
[401105630,1767933050310,-12339.6003511,0.0002259,2]
[401105631,1767933050319,-1431.0,0.00022643,2]
[401105632,1767933050329,-812373.46328223,0.00022671,2]
[401105633,1767933050339,-533.88981491,0.00022693,2]
[401105634,1767933050349,-2579.17784983,0.00022693,2]
[401105635,1767933050358,-523.89137423,0.00022698,2]
[401105636,1767933050368,-1391.37,0.000227,14]
[401105637,1767933050377,-16429.49,0.000227,2]
[401105638,1767933050386,-1431.0,0.00022714,2]
[401105639,1767933050395,-1431.0,0.00022799,2]
[401105640,1767933050406,-2000.0,0.00022811,7]
[401105641,1767933050415,-589.69745305,0.00022821,5]
[401105642,1767933050425,-340.56,0.00022825,2]
[401105643,1767933050435,-2590.0,0.00022881,2]
[401105644,1767933050444,-151.0,0.000229,7]
[401105645,1767933050454,-1000.0,0.00022945,10]
[401105646,1767933050463,-791.0,0.00022945,10]
[401105647,1767933050472,-152.0,0.00022965,3]
[401105648,1767933050482,-200.58193509,0.00022965,3]
[401105649,1767933050491,-151.0,0.00022965,3]